bitfinex/quotes_ETHUSD_20251116
["timestamp","ask_amount","ask_price","bid_price","bid_amount"]
[1763285382208,0.4946,3218.2,3217.6,1.86443435]
[1763285384247,0.4946,3218.2,3217.8,1.1337408]
[1763285384731,0.4893,3217.9,3217.8,1.1337408]
[1763285384931,0.6741,3217.9,3217.8,1.1337408]
[1763285385246,1.1687,3217.9,3217.8,1.1337408]
[1763285385750,0.6741,3217.9,3217.8,1.1337408]
[1763285386444,0.6741,3217.9,3217.7,4.24147174]
[1763285386658,0.9839,3217.8,3217.7,4.24147174]
[1763285387251,0.4893,3217.8,3217.7,4.24147174]
[1763285387431,1.74023435,3218.5,3217.7,7.47248166]
[1763285387607,0.4946,3218.3,3217.7,7.47248166]
[1763285389971,0.4966,3218.3,3217.7,7.34928166]
[1763285391480,0.002,3218.3,3217.8,0.405504]
[1763285391628,0.002,3218.3,3218.2,0.1232]
[1763285392682,0.002,3218.3,3218.2,3.23052707]
[1763285393182,0.002,3218.3,3218.2,3.10732707]
[1763285394583,0.002,3218.3,3218.2,3.23052707]
[1763285394794,0.002,3218.3,3218.2,3.10732707]
[1763285394993,0.4913,3218.3,3218.1,6.21484607]
[1763285395197,0.002,3218.3,3218.1,6.21484607]
[1763285398470,0.002,3218.3,3218.1,3.10742244]
[1763285398754,0.002,3218.3,3218.1,6.21484607]
[1763285401247,0.002,3218.3,3218.2,4.36426787]
[1763285401514,0.002,3218.3,3218.2,6.55585614]
[1763285401710,0.002,3218.3,3218.2,10.84938287]
[1763285401867,0.002,3218.3,3218.2,11.44938287]
[1763285402510,0.002,3218.6,3218.5,2.037315]
[1763285402713,0.002,3218.6,3218.5,2.160515]
[1763285403045,0.002,3218.6,3218.5,2.283715]
[1763285403319,0.002,3218.6,3218.5,6.70929323]
[1763285403615,0.002,3218.6,3218.5,7.33840692]
[1763285408491,0.002,3218.6,3218.5,5.58339592]
[1763285408692,0.002,3218.6,3218.5,7.21520692]
[1763285409096,0.002,3218.6,3218.5,7.33840692]
[1763285410524,0.002,3219.0,3218.5,7.21520692]
[1763285410731,29.4,3224.3,3218.5,7.21520692]
[1763285410732,0.4767,3220.5,3220.1,0.405504]
[1763285410901,0.4767,3220.5,3220.0,1.631811]
[1763285410902,0.4767,3220.3,3220.2,0.405504]
[1763285411321,0.9551,3220.3,3220.2,1.33812087]
[1763285411634,0.4784,3220.3,3220.2,1.33812087]
[1763285411802,0.4784,3220.3,3220.2,4.44351805]
[1763285412840,0.4784,3220.3,3220.2,0.93261687]
[1763285413004,0.9551,3220.3,3219.7,7.34549964]
[1763285413323,0.4767,3220.2,3219.8,1.33823106]
[1763285413528,0.4767,3220.2,3219.8,0.93272706]
[1763285413748,0.6639,3219.9,3219.7,7.34549964]
[1763285413947,0.4784,3219.8,3219.7,5.57789768]
[1763285414093,0.9598,3219.8,3219.7,5.57789768]
[1763285414730,0.9598,3219.8,3219.7,4.64512422]
[1763285415623,0.49221957,3220.7,3219.7,4.64512422]
[1763285415624,0.4814,3220.1,3219.7,4.64512422]
[1763285415821,0.4814,3220.1,3219.7,9.38281464]
[1763285416029,0.4878,3219.8,3219.7,4.64512422]
[1763285416601,0.9692,3219.8,3219.7,4.64512422]
[1763285419242,0.4814,3220.4,3219.7,4.64512422]
[1763285419441,0.4814,3220.3,3219.7,7.87420364]
[1763285420234,0.4814,3220.3,3219.7,7.75100364]
[1763285420442,0.4878,3219.8,3219.7,4.64512422]
[1763285421152,0.9692,3219.8,3219.7,4.64512422]
[1763285421952,0.4878,3219.8,3219.7,4.64512422]
[1763285422353,0.9692,3219.8,3218.8,1.631811]
[1763285422524,0.4878,3219.7,3218.8,2.7655518]
[1763285422851,0.9692,3219.7,3219.1,0.4878]
[1763285423249,0.4878,3219.7,3219.2,0.405504]
[1763285423552,0.9692,3219.7,3219.2,0.405504]
[1763285423952,0.4814,3219.6,3219.3,0.4878]
[1763285424455,0.4878,3219.4,3219.3,3.99956933]
[1763285424853,0.4814,3219.6,3219.4,1.1337408]
[1763285425052,0.1986,3219.9,3219.5,0.405504]
[1763285425556,0.002,3219.8,3219.5,0.405504]
[1763285425732,0.4878,3219.6,3219.5,0.405504]
[1763285426420,0.4878,3219.6,3219.5,4.64531717]
[1763285427151,0.9692,3219.6,3219.5,4.64531717]
[1763285428235,0.9692,3219.6,3219.5,4.23981317]
[1763285429658,0.9692,3219.6,3219.5,1.1337408]
[1763285430423,0.9692,3219.6,3219.3,3.1072219]
[1763285430659,0.4878,3219.4,3219.3,4.2409627]
[1763285431154,0.9692,3219.4,3219.3,4.2409627]
[1763285431366,0.9692,3219.4,3219.3,1.1347408]
[1763285434575,2.8611121,3219.4,3219.3,0.001]
[1763285434779,1.2293011,3219.4,3219.3,0.001]
[1763285435977,0.9692,3219.4,3219.3,0.001]
[1763285444071,0.9712,3219.4,3219.3,0.001]
[1763285448803,5.70917985,3219.4,3219.3,0.001]
[1763285449328,5.99938437,3219.4,3219.3,0.001]
[1763285451407,5.9993077,3219.4,3219.3,0.001]
[1763285451589,6.90984605,3219.4,3219.3,0.001]
[1763285452077,0.6726,3218.7,3217.5,0.001]
[1763285452274,2.304411,3217.7,3217.5,0.001]
[1763285452716,0.4899,3217.7,3217.5,0.001]
[1763285453402,0.4963,3217.9,3217.5,0.001]
[1763285453583,0.87495546,3217.9,3217.5,0.001]
[1763285454406,0.4899,3217.7,3217.5,0.001]
[1763285454803,0.9862,3217.7,3217.5,0.001]
[1763285455735,4.09400992,3217.7,3217.5,0.001]
[1763285456518,0.9862,3217.7,3217.5,0.001]
[1763285456905,0.4899,3217.7,3217.5,0.001]
[1763285457488,0.9862,3217.7,3217.5,0.001]
[1763285458089,0.37865546,3217.9,3217.5,0.001]
[1763285458301,0.87495546,3217.9,3217.5,0.001]
[1763285458921,0.4899,3217.7,3217.5,0.001]
[1763285460488,0.9862,3217.7,3217.5,0.001]
[1763285460692,1.43344926,3217.7,3217.5,0.001]
[1763285461394,1.74153352,3218.4,3217.5,0.001]
[1763285461395,3.10711287,3218.5,3217.6,1.98893352]
[1763285461589,1.74153352,3218.0,3217.6,0.001]
[1763285461825,0.4899,3217.7,3217.6,0.001]
[1763285462212,2.23783352,3218.4,3217.6,0.2474]
[1763285462526,2.23783352,3218.8,3218.3,0.1232]
[1763285462728,1.74153352,3218.5,3217.6,0.001]
[1763285462891,1.74153352,3218.3,3217.6,1.5402448]
[1763285463096,1.74153352,3218.5,3217.6,1.5402448]
[1763285463310,4.84859665,3218.5,3217.7,6.21561984]
[1763285463509,5.34489665,3218.5,3217.7,6.21561984]
[1763285463922,1.74153352,3218.3,3217.7,3.10780992]
[1763285464117,1.74153352,3218.1,3217.6,4.24264714]
[1763285464318,0.4899,3217.7,3217.6,0.001]
[1763285465027,0.86344635,3218.5,3217.6,3.23209627]
[1763285465229,0.1827,3218.7,3218.4,0.1232]
[1763285465443,2.23803352,3218.9,3218.4,0.1232]
[1763285465609,2.23803352,3218.9,3218.4,3.230331]
[1763285466346,1.74153352,3218.7,3218.2,1.1337408]
[1763285466510,1.74153352,3218.7,3218.2,4.24106787]
[1763285466837,0.4965,3218.7,3218.2,4.24106787]
[1763285467609,0.4773,3218.3,3218.0,3.10745945]
[1763285467830,3.96372077,3218.7,3217.9,7.34897432]
[1763285468021,0.4965,3218.6,3217.9,7.34897432]
[1763285469043,0.4965,3218.6,3217.9,4.24135756]
[1763285469342,0.4965,3218.6,3217.9,7.34897432]
[1763285469530,3.60305483,3219.0,3217.9,7.47217432]
[1763285469922,0.4965,3218.9,3217.9,7.47217432]
[1763285470250,0.4965,3218.9,3217.9,4.24135756]
[1763285470414,0.4965,3218.9,3217.9,7.34897432]
[1763285471446,3.10684437,3218.7,3217.9,7.34897432]
[1763285471632,3.98151367,3218.7,3217.9,7.34897432]
[1763285471944,0.4965,3218.6,3217.9,7.34897432]
[1763285472141,0.4965,3218.9,3217.9,7.34897432]
[1763285472343,0.4965,3218.9,3218.0,0.1232]
[1763285473114,4.11462233,3219.1,3218.0,0.1232]
[1763285473533,4.11462233,3219.1,3218.2,1.1337408]
[1763285473749,1.00811204,3219.1,3218.2,1.1337408]
[1763285473933,1.00811204,3219.1,3218.2,1.2569408]
[1763285474470,0.4952,3219.0,3218.3,0.405504]
[1763285476353,0.4952,3219.0,3218.4,6.21426794]
[1763285476650,0.4952,3219.0,3218.4,3.10713397]
[1763285476850,0.4952,3219.0,3218.4,6.21426794]
[1763285479559,0.4952,3219.0,3218.4,3.10713397]
[1763285479762,0.4972,3219.0,3218.4,3.10713397]
[1763285479943,0.4972,3219.0,3218.4,6.21426794]
[1763285484166,0.4972,3219.0,3218.5,1.16481117]
[1763285484167,0.002,3219.0,3218.5,1.16481117]
[1763285484365,0.1919,3218.9,3218.5,1.1337408]
[1763285484672,0.002,3219.0,3218.6,0.405504]
[1763285484840,0.002,3219.0,3218.9,0.1232]
[1763285485257,0.4663,3219.0,3218.6,0.405504]
[1763285486436,0.4663,3219.0,3218.7,6.21368874]
[1763285488282,0.4643,3218.8,3218.5,4.24071563]
[1763285488484,0.4643,3218.8,3218.5,7.34775306]
[1763285488890,0.1919,3218.9,3218.5,7.34775306]
[1763285489519,0.6871,3218.9,3218.5,7.34775306]
[1763285490493,0.4643,3218.6,3218.5,4.24071563]
[1763285490654,0.4643,3218.6,3218.4,1.1337408]
[1763285490990,0.9595,3218.5,3218.4,1.1337408]
[1763285492800,0.4643,3218.5,3218.4,4.24087477]
[1763285493521,1.74026103,3218.8,3218.4,4.24087477]
[1763285493677,2.23546103,3218.8,3218.4,4.24087477]
[1763285494012,0.4952,3218.7,3218.4,4.24087477]
[1763285494526,0.4643,3218.5,3218.4,4.24087477]
[1763285496419,0.9351,3218.5,3218.4,4.24087477]
[1763285498099,0.9351,3218.5,3218.4,4.24187477]
[1763285498676,0.4643,3218.5,3218.4,4.24187477]
[1763285502398,0.9351,3218.5,3218.4,4.24187477]
[1763285502935,0.4643,3218.5,3218.4,4.24187477]
[1763285504935,0.9351,3218.5,3218.4,4.24187477]
[1763285506516,0.4708,3218.7,3218.4,4.24187477]
[1763285506730,1.74026103,3218.8,3218.4,7.34900874]
[1763285506928,0.002,3219.0,3218.6,0.1232]
[1763285509201,0.002,3219.0,3218.9,0.1232]
[1763285509936,0.002,3219.0,3218.9,0.2464]
[1763285511323,0.002,3219.0,3218.9,3.22985134]
[1763285515623,0.4976,3219.0,3218.9,3.10665134]
[1763285515845,0.9684,3219.0,3218.8,1.1337408]
[1763285516153,0.4956,3218.9,3218.8,1.1337408]
[1763285516953,0.002,3219.0,3218.9,0.405504]
[1763285517148,0.002,3219.0,3218.9,0.651904]
[1763285517362,0.002,3219.0,3218.9,0.528704]
[1763285517919,0.002,3219.4,3219.3,3.88602606]
[1763285518122,0.002,3219.4,3219.3,5.14296686]
[1763285518356,0.1879,3222.0,3219.4,2.1392448]
[1763285518657,1.74026103,3221.7,3220.8,0.1232]
[1763285518819,0.464546,3221.6,3220.9,0.1232]
[1763285519240,0.1740261,3221.6,3220.9,1.86346103]
[1763285519449,0.6448261,3221.6,3220.9,1.86346103]
[1763285519847,0.6448261,3221.6,3221.1,1.1337408]
[1763285520227,0.4708,3221.5,3220.9,0.1232]
[1763285520425,0.4708,3221.5,3221.0,1.1337408]
[1763285520751,0.70930871,3221.5,3221.0,1.1337408]
[1763285520951,0.4956,3221.1,3221.0,1.1337408]
[1763285522251,0.4956,3221.1,3221.0,4.23836669]
[1763285522447,0.4708,3221.4,3221.0,4.23836669]
[1763285525079,0.4956,3221.1,3220.3,0.1232]
[1763285525370,2.309771,3221.0,3220.1,6.33418722]
[1763285525665,0.4683,3220.2,3220.1,3.10549361]
[1763285525872,1.62901,3220.8,3220.1,3.10549361]
[1763285526027,0.4675,3220.7,3220.2,1.1337408]
[1763285527470,0.4675,3220.7,3220.4,1.1337408]
[1763285527965,0.4683,3220.5,3220.4,1.1337408]
[1763285528139,0.4683,3220.5,3220.3,1.1337408]
[1763285528328,0.4683,3220.4,3220.3,1.1337408]
[1763285528770,0.4675,3220.7,3220.3,1.1337408]
[1763285529470,0.4675,3220.7,3220.4,3.10520432]
[1763285529680,0.1995,3220.9,3220.4,3.10520432]
[1763285529884,0.23850871,3221.5,3220.5,0.03105107]
[1763285530037,0.4675,3221.2,3220.5,0.405504]
[1763285530578,0.6678,3220.6,3220.4,3.10520432]
[1763285530792,0.4675,3221.2,3220.4,6.21040864]
[1763285531075,0.1995,3220.9,3220.4,6.21040864]
[1763285531479,0.4675,3220.8,3220.4,6.21040864]
[1763285532183,0.1995,3220.9,3220.5,1.5392448]
[1763285532473,0.4675,3221.3,3220.7,0.1232]
[1763285533138,0.4675,3221.5,3220.7,0.1232]
[1763285533570,0.4675,3221.5,3220.9,1.1337408]
[1763285534165,0.4705,3221.0,3220.8,1.5392448]
[1763285534375,0.4675,3221.5,3220.8,1.5392448]
[1763285534545,0.002,3221.2,3220.8,1.5392448]
[1763285535071,0.002,3221.2,3221.1,0.1232]
[1763285535549,0.002,3221.2,3221.1,3.1045295]
[1763285537465,0.002,3221.2,3221.1,3.2277295]
[1763285540241,0.002,3221.2,3221.1,3.1045295]
[1763285540477,0.4725,3221.2,3221.1,3.1045295]
[1763285543152,0.4725,3221.2,3220.9,6.20944456]
[1763285543651,0.002,3221.2,3220.9,6.20944456]
[1763285544782,0.002,3221.2,3217.3,35.36132479]
[1763285544783,2.75039497,3221.0,3219.8,6.21156592]
[1763285544988,1.4834895,3220.9,3219.8,6.21156592]
[1763285545176,4.58825293,3220.9,3220.1,1.1337408]
[1763285545480,0.4965,3220.8,3220.1,1.1337408]
[1763285547495,0.4705,3220.2,3219.8,3.10578296]
[1763285547650,0.4705,3220.0,3219.8,6.21156592]
[1763285547856,0.4965,3220.7,3219.9,1.1337408]
[1763285548162,0.29071344,3220.6,3219.9,1.2569408]
[1763285548490,0.4965,3220.5,3219.9,1.2569408]
[1763285549183,3.10481867,3220.8,3219.9,1.2569408]
[1763285549184,3.62122659,3220.9,3219.9,1.2569408]
[1763285549386,0.4965,3220.7,3220.1,1.1337408]
[1763285549609,3.60142115,3220.7,3220.1,1.1337408]
[1763285549790,0.4705,3220.2,3220.1,1.1337408]
[1763285550385,0.967,3220.2,3220.1,1.1337408]
[1763285551360,0.967,3220.2,3220.1,3.10549361]
[1763285552662,0.967,3220.2,3220.0,3.10558924]
[1763285552874,0.4705,3220.1,3220.0,1.1337408]
[1763285553197,0.967,3220.1,3219.9,1.1337408]
[1763285553398,0.967,3220.1,3219.9,4.2393941]
[1763285553604,0.4705,3220.0,3219.9,4.2393941]
[1763285554579,0.9375,3220.0,3219.9,4.2393941]
[1763285556103,0.9375,3220.0,3219.9,1.1337408]
[1763285556311,0.9375,3220.0,3219.9,3.10568651]
[1763285556494,0.9375,3220.0,3219.4,3.10713973]
[1763285556691,0.4503,3219.5,3219.4,3.10713973]
[1763285556907,0.6638,3219.9,3219.5,1.1337408]
[1763285557080,0.467,3219.8,3219.5,1.1337408]
[1763285557292,0.4503,3219.6,3219.5,1.1337408]
[1763285557608,0.4503,3219.6,3219.4,3.10713973]
[1763285557901,0.4503,3219.5,3219.4,4.24088053]
[1763285558605,0.6638,3219.9,3219.4,4.24088053]
[1763285558987,0.467,3219.8,3219.4,4.24088053]
[1763285559385,0.467,3219.8,3219.4,7.34704938]
[1763285559601,0.1968,3219.9,3219.4,7.34704938]
[1763285559799,5.20246502,3220.2,3219.4,7.34704938]
[1763285559999,0.467,3220.1,3219.4,7.34704938]
[1763285566203,0.467,3220.1,3219.5,0.405504]
[1763285567491,0.467,3220.1,3219.6,6.21195178]
[1763285569512,0.467,3220.3,3219.6,6.21195178]
[1763285569687,0.467,3220.3,3219.6,6.33515178]
[1763285570524,4.73510243,3220.6,3219.6,6.33515178]
[1763285570726,0.5164895,3220.9,3219.9,1.63004294]
[1763285570901,0.467,3220.8,3219.9,2.76378374]
[1763285571096,0.467,3220.8,3219.9,2.88698374]
[1763285572327,0.467,3220.8,3220.0,6.21118012]
[1763285572821,0.002,3220.1,3220.0,3.10559006]
[1763285573326,0.002,3220.1,3220.0,3.22879006]
[1763285574617,0.002,3220.1,3220.0,4.36253086]
[1763285580444,0.002,3220.1,3220.0,4.89123486]
[1763285581019,0.002,3220.1,3220.0,8.72123486]
[1763285582347,0.002,3220.5,3220.4,2.03554694]
[1763285582639,0.002,3220.5,3220.4,2.15874694]
[1763285582844,0.002,3220.5,3220.4,2.28194694]
[1763285583214,0.002,3220.5,3220.4,6.52089206]
[1763285583416,0.002,3220.5,3220.4,10.35089206]
[1763285583618,0.6549,3222.0,3220.5,1.5392448]
[1763285583829,0.6549,3222.0,3221.4,0.405504]
[1763285584359,0.1879,3222.0,3221.4,0.405504]
[1763285584557,0.454,3222.4,3221.9,0.1232]
[1763285585057,0.1937,3222.5,3222.0,0.405504]
[1763285585259,0.454,3222.4,3222.2,1.1337408]
[1763285585755,0.4645,3222.3,3222.2,1.1337408]
[1763285586458,0.4645,3222.3,3222.2,1.5392448]
[1763285587122,0.4645,3222.3,3222.1,1.1337408]
[1763285587329,0.4645,3222.2,3221.9,0.405504]
[1763285587526,0.4645,3222.1,3221.9,0.405504]
[1763285588559,0.9185,3222.1,3221.9,0.405504]
[1763285589257,0.4645,3222.0,3221.9,4.23749945]
[1763285589460,0.9185,3222.0,3221.9,4.23749945]
[1763285590427,0.4645,3222.0,3221.9,4.23749945]
[1763285592977,0.9185,3222.0,3221.9,4.23749945]
[1763285593171,2.65491777,3222.0,3221.9,1.1337408]
[1763285593331,3.23096458,3222.0,3221.9,1.1337408]
[1763285593663,7.49500708,3222.0,3220.9,3.10472228]
[1763285593850,0.4645,3221.0,3220.9,3.10472228]
[1763285594038,0.454,3221.5,3221.0,1.1337408]
[1763285595560,0.4698,3221.1,3220.9,1.1337408]
[1763285595768,0.4698,3221.0,3220.9,3.10472228]
[1763285597828,3.77700399,3221.9,3221.0,1.1337408]
[1763285598035,2.59361817,3221.8,3221.0,1.1337408]
[1763285598527,0.4795,3221.7,3221.0,1.1337408]
[1763285599769,1.73641777,3221.6,3221.0,1.1337408]
[1763285600369,0.4795,3221.5,3221.2,1.1337408]
[1763285600569,0.6553,3220.8,3220.5,3.10602864]
[1763285600768,0.4698,3220.6,3220.5,0.001]
[1763285601063,0.9493,3220.6,3220.5,1.1347408]
[1763285601268,0.9493,3220.6,3220.5,0.001]
[1763285602365,0.1855,3220.8,3220.5,0.001]
[1763285602557,0.665,3220.8,3220.5,0.001]
[1763285603373,0.4698,3220.6,3220.5,0.001]
[1763285603754,2.16205955,3220.8,3220.5,0.001]
[1763285603755,0.1855,3220.8,3220.5,0.001]
[1763285604155,0.665,3220.8,3220.6,1.1337408]
[1763285604456,0.4698,3220.6,3220.5,1.1347408]
[1763285605779,0.9493,3220.6,3220.5,1.1347408]
[1763285606382,0.9493,3220.6,3220.5,4.2398487]
[1763285607667,0.9493,3220.6,3220.5,1.1347408]
[1763285608053,0.9493,3220.6,3220.5,4.2398487]
[1763285608054,0.4698,3220.6,3220.5,4.2398487]
[1763285608258,0.1855,3220.8,3220.7,3.10491508]
[1763285608460,1.1348,3220.8,3220.7,3.10491508]
[1763285608897,1.1348,3220.8,3220.6,3.10499569]
[1763285609261,0.4698,3220.7,3220.6,4.23873649]
[1763285611368,0.002,3221.0,3220.6,7.46694797]
[1763285611567,0.4815,3221.0,3220.6,7.46694797]
[1763285613589,0.4815,3221.0,3220.6,4.36193649]
[1763285613799,0.4815,3221.0,3220.6,4.23873649]
[1763285614105,0.1855,3220.9,3220.6,7.34374797]
[1763285614475,0.6671,3220.9,3220.6,7.34374797]
[1763285614675,0.6671,3220.9,3220.6,4.23874743]
[1763285615171,0.4592,3220.7,3220.6,4.23874743]
[1763285617629,0.1855,3220.9,3220.6,7.46695891]
[1763285618900,0.002,3221.0,3220.6,7.46695891]
[1763285619237,0.4836,3221.0,3220.6,7.46695891]
[1763285620073,0.002,3221.0,3220.7,1.16478995]
[1763285620333,0.002,3221.0,3220.9,0.528704]
[1763285621414,0.002,3221.0,3220.9,0.405504]
[1763285622031,0.002,3221.0,3220.9,3.51022628]
[1763285623142,0.4612,3221.0,3220.9,3.51022628]
[1763285623316,0.9428,3221.0,3220.9,3.51022628]
[1763285624028,0.4612,3221.0,3220.9,3.51022628]
[1763285624233,0.002,3221.0,3220.9,3.63342628]
[1763285625848,0.002,3221.0,3220.9,3.51022628]
[1763285628730,0.4612,3221.0,3220.9,3.51022628]
[1763285628933,0.9428,3221.0,3220.9,3.51022628]
[1763285629930,0.4612,3221.0,3220.9,3.51022628]
[1763285633771,0.9428,3221.0,3220.9,3.51022628]
[1763285633989,0.002,3221.0,3220.9,3.63342628]
[1763285634771,0.002,3221.0,3220.9,4.76716708]
[1763285640097,0.002,3221.0,3220.9,4.64396708]
[1763285642302,0.9428,3221.0,3220.9,4.64396708]
[1763285642665,0.1972,3220.6,3220.1,3.10645884]
[1763285642865,0.29116445,3220.5,3220.1,0.001]
[1763285643066,0.6788,3220.6,3220.1,3.10648017]
[1763285643270,0.4816,3220.5,3220.1,3.10648017]
[1763285643815,0.1972,3220.6,3220.1,6.21197378]
[1763285643994,0.1972,3220.8,3220.2,3.3714847]
[1763285644304,0.1972,3220.8,3220.2,1.6026408]
[1763285645467,0.6793,3220.8,3220.3,3.10530074]
[1763285645899,0.4821,3220.7,3220.3,3.10530074]
[1763285646091,0.4821,3220.7,3220.3,6.21060148]
[1763285648007,0.1972,3220.8,3220.4,1.1337408]
[1763285649041,0.002,3221.0,3220.4,1.1337408]
[1763285649317,0.002,3221.0,3220.9,0.4654]
[1763285649817,0.002,3221.0,3220.9,3.57012228]
[1763285651488,0.9632,3221.0,3220.9,3.10472228]
[1763285651814,0.9632,3221.0,3220.5,1.1337408]
[1763285651815,0.9632,3221.0,3220.6,7.74926776]
[1763285652016,0.6639,3220.9,3220.6,7.74926776]
[1763285652216,0.6639,3220.9,3220.6,4.64425628]
[1763285652622,0.4791,3220.7,3220.6,4.23875228]
[1763285652919,0.1847,3220.9,3220.6,7.34376376]
[1763285653084,0.1847,3220.9,3220.6,7.80916376]
[1763285654019,0.002,3221.0,3220.6,7.80916376]
[1763285654422,0.4934,3221.0,3220.6,7.80916376]
[1763285655637,2.11419124,3220.7,3220.2,3.10539718]
[1763285655938,1.62949124,3220.7,3220.4,1.1337408]
[1763285656134,2.12089124,3220.7,3220.4,1.1337408]
[1763285656432,0.4847,3220.5,3220.2,3.10539172]
[1763285656632,1.85965036,3220.7,3220.2,4.23913252]
[1763285656633,0.4847,3220.3,3220.2,4.23913252]
[1763285656837,0.4914,3220.6,3220.3,1.1337408]
[1763285657341,0.4847,3220.4,3220.3,1.1337408]
[1763285657738,0.4914,3220.6,3220.4,6.21040864]
[1763285658035,0.6721,3220.9,3220.4,6.21040864]
[1763285658235,0.4914,3220.8,3220.4,6.21040864]
[1763285658657,0.4847,3220.5,3220.4,3.10520432]
[1763285659952,0.9761,3220.5,3220.3,7.34430663]
[1763285660250,0.4914,3220.5,3220.3,7.34430663]
[1763285660545,0.4847,3220.4,3220.3,4.23900589]
[1763285661355,0.4914,3220.7,3220.3,7.34430663]
[1763285663969,0.4847,3220.4,3220.3,4.23900589]
[1763285664268,0.4914,3220.7,3220.3,7.34530663]
[1763285664466,0.4847,3220.4,3220.3,4.24000589]
[1763285666630,0.4914,3220.6,3220.3,7.34530663]
[1763285667366,0.4847,3220.4,3220.3,4.24000589]
[1763285667988,0.4914,3220.6,3220.3,7.34530663]
[1763285668875,0.4847,3220.4,3220.3,4.24000589]
[1763285669374,0.9761,3220.4,3220.3,4.24000589]
[1763285670464,0.4847,3220.4,3220.3,4.24000589]
[1763285670914,0.002,3220.7,3220.3,7.34530663]
[1763285671203,0.4934,3220.7,3220.3,7.34530663]
[1763285673000,0.002,3220.7,3220.3,7.34530663]
[1763285673178,0.4934,3220.7,3220.3,7.34530663]
[1763285673806,0.002,3220.7,3220.3,7.34530663]
[1763285673999,0.002,3220.7,3220.6,0.4698]
[1763285674294,0.002,3220.7,3220.6,0.9456]
[1763285674502,0.002,3220.7,3220.6,1.351104]
[1763285675206,0.002,3220.7,3220.6,5.58985628]
[1763285675907,0.002,3220.7,3220.6,9.41985628]
[1763285687229,0.002,3220.7,3220.6,8.94405628]
[1763285687416,0.4541,3220.7,3220.6,8.47425628]
[1763285687613,0.9094,3220.7,3220.6,4.23875228]
[1763285688444,0.4541,3220.7,3220.6,4.23875228]
[1763285688783,0.9094,3220.7,3220.6,4.23875228]
[1763285693428,0.4541,3220.7,3220.6,4.23875228]
[1763285693635,0.9094,3220.7,3220.6,4.23875228]
[1763285693834,0.4541,3220.7,3220.6,4.23875228]
[1763285694662,0.9094,3220.7,3220.6,4.23875228]
[1763285694967,0.72794912,3220.7,3220.6,4.23875228]
[1763285695166,0.4541,3220.7,3220.6,4.23875228]
[1763285697165,0.002,3220.7,3220.6,4.23875228]
[1763285697533,0.4541,3220.7,3220.6,4.23875228]
[1763285697971,0.002,3220.7,3220.6,4.69525228]
[1763285698664,0.002,3220.7,3220.6,5.10075628]
[1763285699357,0.002,3220.7,3220.6,8.93075628]
[1763285699734,0.002,3220.7,3220.6,9.40655628]
[1763285700381,0.002,3220.7,3220.6,8.93075628]
[1763285700683,0.4541,3220.7,3220.6,8.47425628]
[1763285701479,0.4541,3220.7,3220.6,4.64425628]
[1763285702359,0.4541,3220.7,3220.5,3.10607281]
[1763285702360,0.9094,3220.7,3220.5,0.001]
[1763285702565,2.11568036,3220.6,3220.5,0.001]
[1763285702886,2.57098036,3220.6,3220.5,3.1061079]
[1763285703193,2.57098036,3220.6,3220.5,0.001]
[1763285703353,2.86210488,3220.6,3220.3,0.001]
[1763285703552,2.07939124,3220.4,3220.3,0.001]
[1763285703885,2.37051576,3220.4,3220.3,0.001]
[1763285704177,2.82581576,3220.4,3220.1,0.000176]
[1763285704358,4.96928842,3220.2,3220.1,0.000176]
[1763285704878,5.45628842,3220.2,3220.1,0.000176]
[1763285705066,6.31243874,3220.2,3220.1,0.000176]
[1763285705954,1.57755032,3220.2,3220.1,0.000176]
[1763285706148,0.7214,3220.2,3220.1,0.000176]
[1763285706570,2.35089124,3220.2,3220.1,0.000176]
[1763285706977,4.09012152,3220.2,3220.1,0.000176]
[1763285707472,2.46063028,3220.2,3220.1,0.000176]
[1763285708880,2.22623028,3220.5,3220.1,0.000176]
[1763285709081,1.73923028,3220.5,3220.1,0.000176]
[1763285709404,0.4613,3220.2,3220.1,0.000176]
[1763285711877,0.487,3220.4,3220.1,0.000176]
[1763285713015,0.31069075,3220.6,3220.3,0.4966]
[1763285713312,2.22623028,3220.6,3220.1,0.000176]
[1763285713504,0.487,3220.6,3220.1,1.1339168]
[1763285713700,0.002,3220.7,3220.1,1.1339168]
[1763285713920,0.487,3220.5,3220.1,1.1339168]
[1763285714677,0.4929,3220.2,3220.1,1.1339168]
[1763285715326,0.9836,3220.2,3220.1,0.000176]
[1763285716026,1.42980606,3220.2,3220.1,0.000176]
[1763285717220,6.27443352,3220.2,3220.1,0.000176]
[1763285718506,6.56474003,3220.2,3220.1,0.000176]
[1763285719285,6.56674003,3220.2,3220.1,0.000176]
[1763285725642,6.56656389,3220.2,3220.1,0.000176]
[1763285733331,1.72193643,3220.2,3220.1,0.000176]
[1763285734535,1.23123643,3220.2,3220.1,0.000176]
[1763285735244,1.68573643,3220.2,3220.1,0.000176]
[1763285735614,4.79113361,3220.2,3220.1,0.000176]
[1763285736362,6.53036389,3220.2,3220.1,0.000176]
[1763285741946,4.79113361,3220.2,3220.1,0.000176]
[1763285742147,8.26959417,3220.2,3220.1,0.000176]
[1763285752672,7.81509417,3220.2,3220.1,0.000176]
[1763285752879,6.07586389,3220.2,3220.1,0.000176]
[1763285753188,2.03136065,3220.2,3220.1,1.112176]
[1763285753876,0.29213037,3220.2,3220.1,1.112176]
[1763285754372,2.03136065,3220.2,3220.1,1.112176]
[1763285754580,0.29213037,3220.2,3220.1,1.112176]
[1763285755152,2.03136065,3220.2,3220.1,1.112176]
[1763285760385,1.74123028,3220.2,3220.1,1.112176]
[1763285760762,1.74123028,3220.2,3220.1,4.21766961]
[1763285760959,0.002,3220.2,3220.1,4.21766961]
[1763285761694,0.002,3220.2,3220.1,1.112176]
[1763285761853,1.74123028,3220.2,3220.1,0.451876]
[1763285762750,0.002,3220.2,3220.1,4.21766961]
[1763285762978,0.002,3220.2,3220.1,5.35141041]
[1763285763702,0.002,3220.2,3220.1,4.85881041]